[Event "Titled Tuesday Blitz April 4 Early 2023"]
[White "Bruedigam, Martin"]
[Black "Ashraf, Artin"]
[WhiteFideId "24608033"]
[BlackFideId "22514805"]
[WhiteElo "2331"]
[BlackElo "2188"]
[Result "1-0"]
[Round "09"]
[TimeControl "180+2"]
[Date "2023.04.04"]
[WhiteClock "0:00:35"]
[BlackClock "0:00:02"]

1. d4 {[%clk 0:03:00]}  Nf6 {[%clk 0:02:55]} 2. c4 {[%clk 0:03:01]}  b6 {[%clk 0:02:55]} 3. Nc3 {[%clk 0:02:51]}  Bb7 {[%clk 0:02:55]} 4. Nf3 {[%clk 0:02:49]}  e6 {[%clk 0:02:53]} 5. e3 {[%clk 0:02:27]}  d5 {[%clk 0:02:51]} 6. Bd3 {[%clk 0:02:23]}  Nbd7 {[%clk 0:02:50]} 7. O-O {[%clk 0:02:23]}  c5 {[%clk 0:02:48]} 8. cxd5 {[%clk 0:02:18]}  exd5 {[%clk 0:02:38]} 9. dxc5 {[%clk 0:02:16]}  bxc5 {[%clk 0:02:36]} 10. b3 {[%clk 0:02:16]}  Rc8 {[%clk 0:02:34]} 11. Bb2 {[%clk 0:02:16]}  Bd6 {[%clk 0:02:33]} 12. Rc1 {[%clk 0:02:16]}  O-O {[%clk 0:02:32]} 13. Ne2 {[%clk 0:02:14]}  Qe7 {[%clk 0:02:29]} 14. Ng3 {[%clk 0:02:14]}  Bb8 {[%clk 0:02:26]} 15. Nh4 {[%clk 0:02:06]}  Rfe8 {[%clk 0:02:24]} 16. Nhf5 {[%clk 0:02:00]}  Qe6 {[%clk 0:02:22]} 17. Bb1 {[%clk 0:01:56]}  Ne5 {[%clk 0:02:16]} 18. h3 {[%clk 0:01:49]}  Red8 {[%clk 0:01:46]} 19. Qe2 {[%clk 0:01:43]}  Ba6 {[%clk 0:01:44]} 20. Qd2 {[%clk 0:01:34]}  Bxf1 {[%clk 0:01:36]} 21. Rxf1 {[%clk 0:01:34]}  Ne4 {[%clk 0:01:30]} 22. Qe2 {[%clk 0:01:29]}  Nxg3 {[%clk 0:00:50]} 23. fxg3 {[%clk 0:01:22]}  f6 {[%clk 0:00:30]} 24. Kh2 {[%clk 0:01:15]}  c4 {[%clk 0:00:24]} 25. Bd4 {[%clk 0:01:13]}  Nf7 {[%clk 0:00:17]} 26. Qg4 {[%clk 0:01:11]}  Ng5 {[%clk 0:00:07]} 27. h4 {[%clk 0:01:05]}  h5 {[%clk 0:00:04]} 28. Qxh5 {[%clk 0:01:06]}  Ne4 {[%clk 0:00:05]} 29. Qg6 {[%clk 0:00:54]}  Qd7 {[%clk 0:00:04]} 30. Bxe4 {[%clk 0:00:50]}  dxe4 {[%clk 0:00:04]} 31. Bxf6 {[%clk 0:00:46]}  Rc6 {[%clk 0:00:03]} 32. Nxg7 {[%clk 0:00:35]}  Qf7 {[%clk 0:00:02]} 33. Qg5 {[%clk 0:00:35]}  Re6 {[%clk 0:00:02]} 34. Nxe6+ {[%clk 0:00:35]} 1-0


[Site "https://www.chess.com"]

[Event "Titled Tuesday Blitz April 4 Early 2023"]
[White "UNSTOPPABLE_LEGEND"]
[Black "Manukyan, Sargis A."]
[BlackFideId "13303970"]
[WhiteElo "2512"]
[BlackElo "2187"]
[Result "0-1"]
[Round "09"]
[TimeControl "180+2"]
[Date "2023.04.04"]
[WhiteClock "0:01:20"]
[BlackClock "0:00:52"]

1. Nf3 {[%clk 0:02:59]}  d5 {[%clk 0:03:00]} 2. b3 {[%clk 0:03:00]}  e6 {[%clk 0:03:00]} 3. Bb2 {[%clk 0:03:01]}  Nf6 {[%clk 0:03:01]} 4. e3 {[%clk 0:03:01]}  Be7 {[%clk 0:03:02]} 5. Be2 {[%clk 0:03:01]}  c5 {[%clk 0:03:02]} 6. O-O {[%clk 0:03:02]}  O-O {[%clk 0:03:02]} 7. c4 {[%clk 0:03:03]}  Nc6 {[%clk 0:03:03]} 8. cxd5 {[%clk 0:03:04]}  Nxd5 {[%clk 0:03:03]} 9. Nc3 {[%clk 0:03:02]}  b6 {[%clk 0:03:02]} 10. d4 {[%clk 0:03:01]}  Nxc3 {[%clk 0:03:01]} 11. Bxc3 {[%clk 0:03:00]}  cxd4 {[%clk 0:03:01]} 12. Nxd4 {[%clk 0:02:54]}  Nxd4 {[%clk 0:03:01]} 13. Bxd4 {[%clk 0:02:55]}  Bb7 {[%clk 0:03:00]} 14. Bf3 {[%clk 0:02:54]}  Qd7 {[%clk 0:02:43]} 15. Be5 {[%clk 0:02:41]}  Qxd1 {[%clk 0:02:41]} 16. Rfxd1 {[%clk 0:02:42]}  Bxf3 {[%clk 0:02:40]} 17. gxf3 {[%clk 0:02:43]}  Rfd8 {[%clk 0:02:40]} 18. Kf1 {[%clk 0:02:43]}  f6 {[%clk 0:02:39]} 19. Bg3 {[%clk 0:02:42]}  Kf7 {[%clk 0:02:26]} 20. Ke2 {[%clk 0:02:41]}  Ke8 {[%clk 0:02:15]} 21. Rdc1 {[%clk 0:02:40]}  Rac8 {[%clk 0:02:14]} 22. Rxc8 {[%clk 0:02:32]}  Rxc8 {[%clk 0:02:13]} 23. Kd2 {[%clk 0:02:30]}  Bb4+ {[%clk 0:02:12]} 24. Kd1 {[%clk 0:02:29]}  e5 {[%clk 0:02:13]} 25. Rc1 {[%clk 0:02:29]}  Rd8+ {[%clk 0:02:05]} 26. Kc2 {[%clk 0:02:29]}  Rd2+ {[%clk 0:02:05]} 27. Kb1 {[%clk 0:02:26]}  Ba3 {[%clk 0:01:50]} 28. Rg1 {[%clk 0:02:25]}  Kf7 {[%clk 0:01:34]} 29. h3 {[%clk 0:02:24]}  g6 {[%clk 0:01:29]} 30. h4 {[%clk 0:02:22]}  h5 {[%clk 0:01:28]} 31. Rf1 {[%clk 0:02:18]}  Ke6 {[%clk 0:01:27]} 32. Re1 {[%clk 0:02:10]}  b5 {[%clk 0:01:24]} 33. Rf1 {[%clk 0:02:09]}  a6 {[%clk 0:01:24]} 34. Rg1 {[%clk 0:02:07]}  a5 {[%clk 0:01:11]} 35. Re1 {[%clk 0:01:58]}  a4 {[%clk 0:01:08]} 36. Rf1 {[%clk 0:01:54]}  Bb2 {[%clk 0:01:01]} 37. Re1 {[%clk 0:01:41]}  a3 {[%clk 0:00:59]} 38. Rf1 {[%clk 0:01:40]}  Bc3 {[%clk 0:00:56]} 39. Rd1 {[%clk 0:01:39]}  Rxd1+ {[%clk 0:00:53]} 40. Kc2 {[%clk 0:01:20]}  Ra1 {[%clk 0:00:52]} 0-1


[Site "https://www.chess.com"]

[Event "Titled Tuesday Blitz April 4 Early 2023"]
[White "Volkov, Maksim"]
[Black "Dushyant Sharma"]
[WhiteFideId "54123070"]
[BlackFideId "25065130"]
[WhiteElo "2312"]
[BlackElo "2198"]
[Result "1/2-1/2"]
[Round "09"]
[TimeControl "180+2"]
[Date "2023.04.04"]
[WhiteClock "0:00:04"]
[BlackClock "0:00:03"]

1. d4 {[%clk 0:03:00]}  d5 {[%clk 0:02:57]} 2. c4 {[%clk 0:03:00]}  e6 {[%clk 0:02:55]} 3. Nf3 {[%clk 0:03:00]}  Nf6 {[%clk 0:02:53]} 4. g3 {[%clk 0:03:01]}  Be7 {[%clk 0:02:52]} 5. Bg2 {[%clk 0:03:01]}  O-O {[%clk 0:02:53]} 6. Nc3 {[%clk 0:03:01]}  dxc4 {[%clk 0:02:53]} 7. Ne5 {[%clk 0:03:01]}  c5 {[%clk 0:02:51]} 8. dxc5 {[%clk 0:03:00]}  Bxc5 {[%clk 0:02:52]} 9. O-O {[%clk 0:02:57]}  Qc7 {[%clk 0:02:33]} 10. Bf4 {[%clk 0:02:41]}  Qe7 {[%clk 0:02:29]} 11. Nxc4 {[%clk 0:02:34]}  Nc6 {[%clk 0:02:26]} 12. Bd6 {[%clk 0:02:34]}  Bxd6 {[%clk 0:02:17]} 13. Qxd6 {[%clk 0:02:34]}  Qxd6 {[%clk 0:02:17]} 14. Nxd6 {[%clk 0:02:35]}  Rd8 {[%clk 0:02:16]} 15. Rfd1 {[%clk 0:02:34]}  Kf8 {[%clk 0:02:11]} 16. Rac1 {[%clk 0:02:07]}  Ke7 {[%clk 0:02:05]} 17. Nxc8+ {[%clk 0:01:33]}  Raxc8 {[%clk 0:02:04]} 18. Rxd8 {[%clk 0:01:33]}  Rxd8 {[%clk 0:02:05]} 19. Nb5 {[%clk 0:01:32]}  Rd2 {[%clk 0:01:55]} 20. Bxc6 {[%clk 0:01:11]}  bxc6 {[%clk 0:01:55]} 21. Rxc6 {[%clk 0:01:12]}  Rxb2 {[%clk 0:01:55]} 22. a4 {[%clk 0:01:12]}  a5 {[%clk 0:01:28]} 23. Rc7+ {[%clk 0:01:08]}  Kd8 {[%clk 0:01:08]} 24. Rxf7 {[%clk 0:01:04]}  Ra2 {[%clk 0:00:55]} 25. Rxg7 {[%clk 0:00:50]}  Rxa4 {[%clk 0:00:55]} 26. Nd6 {[%clk 0:00:50]}  Ra1+ {[%clk 0:00:48]} 27. Kg2 {[%clk 0:00:50]}  a4 {[%clk 0:00:49]} 28. Nb7+ {[%clk 0:00:46]}  Ke8 {[%clk 0:00:45]} 29. Nc5 {[%clk 0:00:47]}  a3 {[%clk 0:00:42]} 30. Ra7 {[%clk 0:00:46]}  Nd5 {[%clk 0:00:42]} 31. Nxe6 {[%clk 0:00:33]}  a2 {[%clk 0:00:38]} 32. Nc5 {[%clk 0:00:23]}  Nc3 {[%clk 0:00:28]} 33. Na4 {[%clk 0:00:19]}  Nb5 {[%clk 0:00:17]} 34. Ra8+ {[%clk 0:00:19]}  Ke7 {[%clk 0:00:18]} 35. Nb2 {[%clk 0:00:19]}  Nc3 {[%clk 0:00:16]} 36. Na4 {[%clk 0:00:17]}  Nxe2 {[%clk 0:00:17]} 37. Nb6 {[%clk 0:00:12]}  Ke6 {[%clk 0:00:12]} 38. Ra3 {[%clk 0:00:10]}  Rg1+ {[%clk 0:00:11]} 39. Kf3 {[%clk 0:00:09]}  Nd4+ {[%clk 0:00:11]} 40. Ke4 {[%clk 0:00:09]}  a1=Q {[%clk 0:00:10]} 41. Rxa1 {[%clk 0:00:09]}  Rxa1 {[%clk 0:00:11]} 42. Kxd4 {[%clk 0:00:10]}  Ra2 {[%clk 0:00:09]} 43. Ke3 {[%clk 0:00:09]}  Kf5 {[%clk 0:00:10]} 44. Nd5 {[%clk 0:00:08]}  Kg4 {[%clk 0:00:10]} 45. h4 {[%clk 0:00:07]}  Ra3+ {[%clk 0:00:09]} 46. Ke2 {[%clk 0:00:07]}  Ra2+ {[%clk 0:00:10]} 47. Ke3 {[%clk 0:00:08]}  Ra3+ {[%clk 0:00:09]} 48. Ke2 {[%clk 0:00:08]}  h5 {[%clk 0:00:10]} 49. Ne3+ {[%clk 0:00:07]}  Kh3 {[%clk 0:00:09]} 50. Kf3 {[%clk 0:00:08]}  Ra2 {[%clk 0:00:10]} 51. Nd5 {[%clk 0:00:08]}  Ra3+ {[%clk 0:00:08]} 52. Ne3 {[%clk 0:00:07]}  Ra2 {[%clk 0:00:09]} 53. Nd5 {[%clk 0:00:07]}  Ra3+ {[%clk 0:00:10]} 54. Ke4 {[%clk 0:00:04]}  Kg2 {[%clk 0:00:09]} 55. Nf4+ {[%clk 0:00:02]}  Kxf2 {[%clk 0:00:10]} 56. Nxh5 {[%clk 0:00:02]}  Ra4+ {[%clk 0:00:05]} 57. Kf5 {[%clk 0:00:03]}  Ra5+ {[%clk 0:00:06]} 58. Kg6 {[%clk 0:00:03]}  Kf3 {[%clk 0:00:05]} 59. Nf6 {[%clk 0:00:02]}  Kxg3 {[%clk 0:00:04]} 60. h5 {[%clk 0:00:03]}  Rxh5 {[%clk 0:00:03]} 61. Nxh5+ {[%clk 0:00:04]} 1/2-1/2


[Site "https://www.chess.com"]

[Event "Titled Tuesday Blitz April 4 Early 2023"]
[White "Munoz, Francisco Javier"]
[Black "TheKnightOfBosnia"]
[WhiteFideId "128368"]
[WhiteElo "2383"]
[BlackElo "2503"]
[Result "0-1"]
[Round "09"]
[TimeControl "180+2"]
[Date "2023.04.04"]
[WhiteClock "0:00:44"]
[BlackClock "0:00:46"]

1. e4 {[%clk 0:02:56]}  e5 {[%clk 0:02:59]} 2. Nf3 {[%clk 0:02:55]}  Nc6 {[%clk 0:03:00]} 3. Nc3 {[%clk 0:02:53]}  Nf6 {[%clk 0:03:00]} 4. Bb5 {[%clk 0:02:54]}  Bb4 {[%clk 0:02:59]} 5. d3 {[%clk 0:02:54]}  d6 {[%clk 0:02:57]} 6. O-O {[%clk 0:02:55]}  Bxc3 {[%clk 0:02:57]} 7. bxc3 {[%clk 0:02:54]}  O-O {[%clk 0:02:57]} 8. Nd2 {[%clk 0:02:55]}  Ne7 {[%clk 0:02:53]} 9. f4 {[%clk 0:02:56]}  exf4 {[%clk 0:02:53]} 10. Rxf4 {[%clk 0:02:57]}  Ng6 {[%clk 0:02:53]} 11. Rf1 {[%clk 0:02:56]}  c6 {[%clk 0:02:52]} 12. Bc4 {[%clk 0:02:54]}  Qb6+ {[%clk 0:02:51]} 13. Kh1 {[%clk 0:02:53]}  Ng4 {[%clk 0:02:50]} 14. Qe2 {[%clk 0:02:07]}  d5 {[%clk 0:02:50]} 15. Ba3 {[%clk 0:01:52]}  dxc4 {[%clk 0:02:46]} 16. Nxc4 {[%clk 0:01:50]}  Qc7 {[%clk 0:02:42]} 17. Bd6 {[%clk 0:01:48]}  Qd8 {[%clk 0:02:34]} 18. h3 {[%clk 0:01:45]}  Qh4 {[%clk 0:02:28]} 19. Bxf8 {[%clk 0:01:43]}  Nxf8 {[%clk 0:02:14]} 20. Nd6 {[%clk 0:01:40]}  Be6 {[%clk 0:02:00]} 21. Nf5 {[%clk 0:01:35]}  Bxf5 {[%clk 0:01:58]} 22. Rxf5 {[%clk 0:01:36]}  Nf6 {[%clk 0:01:40]} 23. Rb1 {[%clk 0:01:33]}  b6 {[%clk 0:01:35]} 24. a4 {[%clk 0:01:31]}  Re8 {[%clk 0:01:27]} 25. a5 {[%clk 0:01:22]}  g6 {[%clk 0:01:20]} 26. Rf3 {[%clk 0:01:18]}  Nh5 {[%clk 0:01:15]} 27. Qe3 {[%clk 0:01:09]}  Ne6 {[%clk 0:01:06]} 28. axb6 {[%clk 0:00:54]}  axb6 {[%clk 0:01:07]} 29. Qf2 {[%clk 0:00:52]}  Qxf2 {[%clk 0:01:03]} 30. Rxf2 {[%clk 0:00:53]}  b5 {[%clk 0:01:01]} 31. Rbf1 {[%clk 0:00:53]}  Ng3+ {[%clk 0:00:59]} 32. Kh2 {[%clk 0:00:53]}  Nxf1+ {[%clk 0:01:00]} 33. Rxf1 {[%clk 0:00:53]}  Ra8 {[%clk 0:01:01]} 34. Kg3 {[%clk 0:00:51]}  Ra2 {[%clk 0:01:00]} 35. Rc1 {[%clk 0:00:51]}  Nc5 {[%clk 0:00:57]} 36. Kf3 {[%clk 0:00:51]}  Na4 {[%clk 0:00:57]} 37. c4 {[%clk 0:00:48]}  bxc4 {[%clk 0:00:57]} 38. dxc4 {[%clk 0:00:49]}  Ra3+ {[%clk 0:00:57]} 39. Kf4 {[%clk 0:00:49]}  Rc3 {[%clk 0:00:54]} 40. Ke5 {[%clk 0:00:49]}  Rxc4 {[%clk 0:00:54]} 41. Kd6 {[%clk 0:00:50]}  Kg7 {[%clk 0:00:50]} 42. e5 {[%clk 0:00:50]}  Nc3 {[%clk 0:00:50]} 43. e6 {[%clk 0:00:48]}  Ne4+ {[%clk 0:00:50]} 44. Kd7 {[%clk 0:00:43]}  Nc5+ {[%clk 0:00:49]} 45. Kxc6 {[%clk 0:00:43]}  Nxe6+ {[%clk 0:00:50]} 46. Kd5 {[%clk 0:00:44]}  Rd4+ {[%clk 0:00:48]} 47. Ke5 {[%clk 0:00:44]}  Rd2 {[%clk 0:00:45]} 48. c4 {[%clk 0:00:43]}  Rxg2 {[%clk 0:00:45]} 49. c5 {[%clk 0:00:43]}  Rg5+ {[%clk 0:00:46]} 50. Kd6 {[%clk 0:00:44]}  Rxc5 {[%clk 0:00:46]} 51. Rc4 {[%clk 0:00:44]}  Rxc4 {[%clk 0:00:46]} 0-1


[Site "https://www.chess.com"]

[Event "Titled Tuesday Blitz April 4 Early 2023"]
[White "Shvedova, Alexandra"]
[Black "Jakubowski, Krzysztof"]
[WhiteFideId "54154782"]
[BlackFideId "1112848"]
[WhiteElo "2057"]
[BlackElo "2359"]
[Result "1-0"]
[Round "09"]
[TimeControl "180+2"]
[Date "2023.04.04"]
[WhiteClock "0:00:38"]
[BlackClock "0:00:01"]

1. d4 {[%clk 0:03:00]}  Nf6 {[%clk 0:02:58]} 2. c4 {[%clk 0:03:01]}  e6 {[%clk 0:02:58]} 3. Nf3 {[%clk 0:03:01]}  b6 {[%clk 0:02:57]} 4. g3 {[%clk 0:03:01]}  Ba6 {[%clk 0:02:56]} 5. Qc2 {[%clk 0:03:00]}  c5 {[%clk 0:02:42]} 6. Bg2 {[%clk 0:02:57]}  Nc6 {[%clk 0:02:35]} 7. dxc5 {[%clk 0:02:26]}  bxc5 {[%clk 0:02:31]} 8. a3 {[%clk 0:02:21]}  Be7 {[%clk 0:02:26]} 9. O-O {[%clk 0:02:21]}  O-O {[%clk 0:02:25]} 10. Bf4 {[%clk 0:02:10]}  Qb6 {[%clk 0:02:22]} 11. Nbd2 {[%clk 0:02:06]}  d6 {[%clk 0:02:03]} 12. h3 {[%clk 0:01:48]}  Rab8 {[%clk 0:01:56]} 13. Rab1 {[%clk 0:01:48]}  h6 {[%clk 0:01:44]} 14. g4 {[%clk 0:01:47]}  e5 {[%clk 0:01:37]} 15. Bg3 {[%clk 0:01:47]}  Nh7 {[%clk 0:01:10]} 16. e3 {[%clk 0:01:33]}  Bc8 {[%clk 0:01:05]} 17. Nh4 {[%clk 0:01:27]}  Bxh4 {[%clk 0:00:52]} 18. Bxh4 {[%clk 0:01:26]}  f5 {[%clk 0:00:51]} 19. gxf5 {[%clk 0:01:08]}  Bxf5 {[%clk 0:00:50]} 20. Ne4 {[%clk 0:01:06]}  Rb7 {[%clk 0:00:04]} 21. Qd2 {[%clk 0:01:04]}  Rd7 {[%clk 0:00:03]} 22. Rbd1 {[%clk 0:01:01]}  Kh8 {[%clk 0:00:03]} 23. Nc3 {[%clk 0:00:50]}  Na5 {[%clk 0:00:02]} 24. Qe2 {[%clk 0:00:42]}  Qa6 {[%clk 0:00:01]} 25. Nb5 {[%clk 0:00:38]} 1-0


[Site "https://www.chess.com"]

[Event "Titled Tuesday Blitz April 4 Early 2023"]
[White "Ehlvest, Jaan"]
[Black "Dudzinski, Pawel"]
[WhiteFideId "4500016"]
[BlackFideId "1117890"]
[WhiteElo "2442"]
[BlackElo "2099"]
[Result "1-0"]
[Round "09"]
[TimeControl "180+2"]
[Date "2023.04.04"]
[WhiteClock "0:00:30"]
[BlackClock "0:00:01"]

1. e4 {[%clk 0:02:53]}  c6 {[%clk 0:02:59]} 2. d4 {[%clk 0:02:52]}  d5 {[%clk 0:03:00]} 3. e5 {[%clk 0:02:53]}  c5 {[%clk 0:03:00]} 4. Nf3 {[%clk 0:02:52]}  Nc6 {[%clk 0:02:58]} 5. dxc5 {[%clk 0:02:51]}  Bg4 {[%clk 0:02:58]} 6. c3 {[%clk 0:02:51]}  e6 {[%clk 0:02:56]} 7. Be3 {[%clk 0:02:48]}  Bxf3 {[%clk 0:02:55]} 8. Qxf3 {[%clk 0:02:47]}  Nxe5 {[%clk 0:02:54]} 9. Bb5+ {[%clk 0:02:45]}  Nc6 {[%clk 0:02:55]} 10. O-O {[%clk 0:02:43]}  Ne7 {[%clk 0:02:47]} 11. b4 {[%clk 0:02:34]}  Nf5 {[%clk 0:02:41]} 12. Bf4 {[%clk 0:02:32]}  Be7 {[%clk 0:02:38]} 13. Nd2 {[%clk 0:02:31]}  O-O {[%clk 0:02:30]} 14. Rad1 {[%clk 0:02:28]}  a6 {[%clk 0:01:47]} 15. Bd3 {[%clk 0:02:17]}  Nh4 {[%clk 0:01:45]} 16. Qh3 {[%clk 0:02:00]}  Ng6 {[%clk 0:01:31]} 17. Nf3 {[%clk 0:01:39]}  Bf6 {[%clk 0:01:11]} 18. Bd6 {[%clk 0:01:14]}  Be7 {[%clk 0:01:10]} 19. Bg3 {[%clk 0:01:09]}  Bf6 {[%clk 0:01:09]} 20. Qh5 {[%clk 0:01:07]}  e5 {[%clk 0:00:56]} 21. Bc2 {[%clk 0:01:01]}  Re8 {[%clk 0:00:46]} 22. Bb3 {[%clk 0:00:55]}  Nce7 {[%clk 0:00:35]} 23. Rfe1 {[%clk 0:00:50]}  Nf4 {[%clk 0:00:17]} 24. Bxf4 {[%clk 0:00:45]}  exf4 {[%clk 0:00:18]} 25. Ng5 {[%clk 0:00:44]}  Bxg5 {[%clk 0:00:16]} 26. Qxg5 {[%clk 0:00:44]}  Ng6 {[%clk 0:00:11]} 27. Qxd5 {[%clk 0:00:35]}  Qxd5 {[%clk 0:00:06]} 28. Bxd5 {[%clk 0:00:34]}  Rad8 {[%clk 0:00:02]} 29. Bxb7 {[%clk 0:00:32]}  Rxe1+ {[%clk 0:00:01]} 30. Rxe1 {[%clk 0:00:31]}  a5 {[%clk 0:00:01]} 31. c6 {[%clk 0:00:30]}  Nf8 {[%clk 0:00:01]} 32. c7 {[%clk 0:00:30]} 1-0


[Site "https://www.chess.com"]

[Event "Titled Tuesday Blitz April 4 Early 2023"]
[White "Fiorito, Francisco"]
[Black "Bowden, Karl"]
[WhiteFideId "180165"]
[BlackFideId "400548"]
[WhiteElo "2341"]
[BlackElo "2466"]
[Result "1-0"]
[Round "09"]
[TimeControl "180+2"]
[Date "2023.04.04"]
[WhiteClock "0:00:08"]
[BlackClock "0:00:03"]

1. d4 {[%clk 0:03:00]}  Nf6 {[%clk 0:02:59]} 2. Bf4 {[%clk 0:02:59]}  c6 {[%clk 0:02:59]} 3. e3 {[%clk 0:02:57]}  Qb6 {[%clk 0:02:59]} 4. Qc1 {[%clk 0:02:55]}  Nh5 {[%clk 0:02:58]} 5. Bg3 {[%clk 0:02:42]}  Nxg3 {[%clk 0:02:57]} 6. hxg3 {[%clk 0:02:43]}  g6 {[%clk 0:02:57]} 7. Nf3 {[%clk 0:02:43]}  Bg7 {[%clk 0:02:58]} 8. Bd3 {[%clk 0:02:43]}  d6 {[%clk 0:02:58]} 9. Nbd2 {[%clk 0:02:44]}  Nd7 {[%clk 0:02:54]} 10. c3 {[%clk 0:02:43]}  Qc7 {[%clk 0:02:52]} 11. Qc2 {[%clk 0:02:44]}  e5 {[%clk 0:02:34]} 12. Rd1 {[%clk 0:02:39]}  Nf6 {[%clk 0:02:24]} 13. dxe5 {[%clk 0:02:37]}  dxe5 {[%clk 0:02:24]} 14. Nc4 {[%clk 0:02:37]}  Ng4 {[%clk 0:02:16]} 15. Be2 {[%clk 0:02:27]}  Bf5 {[%clk 0:01:57]} 16. e4 {[%clk 0:02:21]}  Bd7 {[%clk 0:01:48]} 17. Ng5 {[%clk 0:02:19]}  Nh6 {[%clk 0:01:27]} 18. Nd6+ {[%clk 0:02:10]}  Kf8 {[%clk 0:01:27]} 19. Rxh6 {[%clk 0:01:55]}  Bxh6 {[%clk 0:01:25]} 20. Ngxf7 {[%clk 0:01:56]}  Kg7 {[%clk 0:01:22]} 21. Nxh8 {[%clk 0:01:56]}  Rxh8 {[%clk 0:01:19]} 22. Qb3 {[%clk 0:01:56]}  Bc8 {[%clk 0:01:12]} 23. Nxc8 {[%clk 0:01:51]}  Rxc8 {[%clk 0:01:09]} 24. Qe6 {[%clk 0:01:48]}  Rd8 {[%clk 0:01:03]} 25. Rxd8 {[%clk 0:01:47]}  Qxd8 {[%clk 0:01:04]} 26. Qxe5+ {[%clk 0:01:47]}  Qf6 {[%clk 0:01:04]} 27. Qc7+ {[%clk 0:01:44]}  Qf7 {[%clk 0:01:04]} 28. Qxf7+ {[%clk 0:01:40]}  Kxf7 {[%clk 0:01:04]} 29. f4 {[%clk 0:01:40]}  g5 {[%clk 0:00:58]} 30. Bc4+ {[%clk 0:01:28]}  Ke7 {[%clk 0:00:56]} 31. Bg8 {[%clk 0:01:21]}  gxf4 {[%clk 0:00:56]} 32. gxf4 {[%clk 0:01:20]}  Bxf4 {[%clk 0:00:56]} 33. Bxh7 {[%clk 0:01:20]}  Kf6 {[%clk 0:00:52]} 34. Ke2 {[%clk 0:01:15]}  Ke5 {[%clk 0:00:43]} 35. Bf5 {[%clk 0:01:13]}  b6 {[%clk 0:00:41]} 36. b3 {[%clk 0:01:13]}  a5 {[%clk 0:00:36]} 37. Bd7 {[%clk 0:01:13]}  c5 {[%clk 0:00:36]} 38. Kd3 {[%clk 0:01:13]}  Bg3 {[%clk 0:00:34]} 39. Bc6 {[%clk 0:00:54]}  Kd6 {[%clk 0:00:33]} 40. Bd5 {[%clk 0:00:40]}  Ke5 {[%clk 0:00:33]} 41. Kc4 {[%clk 0:00:40]}  Kd6 {[%clk 0:00:30]} 42. Kb5 {[%clk 0:00:35]}  Kc7 {[%clk 0:00:29]} 43. Bc6 {[%clk 0:00:35]}  Be5 {[%clk 0:00:24]} 44. c4 {[%clk 0:00:36]}  Bg3 {[%clk 0:00:23]} 45. Bd5 {[%clk 0:00:35]}  Be5 {[%clk 0:00:18]} 46. g4 {[%clk 0:00:36]}  Bg7 {[%clk 0:00:18]} 47. g5 {[%clk 0:00:36]}  Be5 {[%clk 0:00:17]} 48. g6 {[%clk 0:00:37]}  Bg7 {[%clk 0:00:17]} 49. Ka4 {[%clk 0:00:23]}  Bf6 {[%clk 0:00:15]} 50. a3 {[%clk 0:00:21]}  Bc3 {[%clk 0:00:14]} 51. Kb5 {[%clk 0:00:18]}  Bg7 {[%clk 0:00:11]} 52. b4 {[%clk 0:00:19]}  axb4 {[%clk 0:00:11]} 53. axb4 {[%clk 0:00:20]}  cxb4 {[%clk 0:00:11]} 54. Kxb4 {[%clk 0:00:21]}  Kd6 {[%clk 0:00:11]} 55. Kb5 {[%clk 0:00:21]}  Kc7 {[%clk 0:00:11]} 56. Be6 {[%clk 0:00:16]}  Be5 {[%clk 0:00:10]} 57. Bf5 {[%clk 0:00:16]}  Bg7 {[%clk 0:00:10]} 58. c5 {[%clk 0:00:13]}  bxc5 {[%clk 0:00:10]} 59. Kxc5 {[%clk 0:00:14]}  Kd8 {[%clk 0:00:05]} 60. Kd6 {[%clk 0:00:13]}  Ke8 {[%clk 0:00:04]} 61. Ke6 {[%clk 0:00:14]}  Kf8 {[%clk 0:00:04]} 62. e5 {[%clk 0:00:15]}  Kg8 {[%clk 0:00:04]} 63. Bb1 {[%clk 0:00:13]}  Kf8 {[%clk 0:00:04]} 64. Ba2 {[%clk 0:00:13]}  Bh6 {[%clk 0:00:04]} 65. Kf6 {[%clk 0:00:11]}  Bg7+ {[%clk 0:00:03]} 66. Ke6 {[%clk 0:00:11]}  Bh6 {[%clk 0:00:04]} 67. Kd7 {[%clk 0:00:11]}  Bf4 {[%clk 0:00:03]} 68. e6 {[%clk 0:00:08]}  Bg5 {[%clk 0:00:03]} 69. Bb1 {[%clk 0:00:08]} 1-0


[Site "https://www.chess.com"]

[Event "Titled Tuesday Blitz April 4 Early 2023"]
[White "Leebit02"]
[Black "Molina, Roberto Junio Brito"]
[BlackFideId "2109450"]
[WhiteElo "2421"]
[BlackElo "2376"]
[Result "1/2-1/2"]
[Round "09"]
[TimeControl "180+2"]
[Date "2023.04.04"]
[WhiteClock "0:00:31"]
[BlackClock "0:01:46"]

1. e4 {[%clk 0:03:00]}  c5 {[%clk 0:02:59]} 2. Nf3 {[%clk 0:02:58]}  d6 {[%clk 0:03:00]} 3. d4 {[%clk 0:02:58]}  cxd4 {[%clk 0:03:01]} 4. Nxd4 {[%clk 0:02:58]}  Nf6 {[%clk 0:03:01]} 5. Nc3 {[%clk 0:02:59]}  a6 {[%clk 0:03:01]} 6. h3 {[%clk 0:02:54]}  e6 {[%clk 0:03:00]} 7. g4 {[%clk 0:02:53]}  b5 {[%clk 0:03:00]} 8. Bg2 {[%clk 0:02:51]}  Bb7 {[%clk 0:03:00]} 9. a3 {[%clk 0:02:48]}  h6 {[%clk 0:02:51]} 10. Be3 {[%clk 0:02:45]}  Nbd7 {[%clk 0:02:51]} 11. Nde2 {[%clk 0:02:25]}  Ne5 {[%clk 0:02:48]} 12. O-O {[%clk 0:02:14]}  Nc4 {[%clk 0:02:47]} 13. Bc1 {[%clk 0:02:14]}  Rc8 {[%clk 0:02:45]} 14. b3 {[%clk 0:02:13]}  Nb6 {[%clk 0:02:42]} 15. f4 {[%clk 0:02:05]}  Qc7 {[%clk 0:02:37]} 16. Be3 {[%clk 0:01:55]}  d5 {[%clk 0:02:31]} 17. e5 {[%clk 0:01:50]}  Bc5 {[%clk 0:02:30]} 18. Bxc5 {[%clk 0:01:46]}  Qxc5+ {[%clk 0:02:30]} 19. Kh2 {[%clk 0:01:46]}  Ne4 {[%clk 0:02:19]} 20. Nxe4 {[%clk 0:01:15]}  dxe4 {[%clk 0:02:20]} 21. Ng3 {[%clk 0:00:58]}  Qxc2 {[%clk 0:02:13]} 22. Rc1 {[%clk 0:00:57]}  Qxd1 {[%clk 0:02:09]} 23. Rfxd1 {[%clk 0:00:57]}  Rxc1 {[%clk 0:02:06]} 24. Rxc1 {[%clk 0:00:57]}  Kd7 {[%clk 0:02:05]} 25. Nxe4 {[%clk 0:00:54]}  Bxe4 {[%clk 0:02:03]} 26. Bxe4 {[%clk 0:00:54]}  Rc8 {[%clk 0:02:01]} 27. Rxc8 {[%clk 0:00:52]}  Kxc8 {[%clk 0:02:00]} 28. Kg3 {[%clk 0:00:51]}  a5 {[%clk 0:01:57]} 29. Kf3 {[%clk 0:00:49]}  a4 {[%clk 0:01:56]} 30. bxa4 {[%clk 0:00:42]}  bxa4 {[%clk 0:01:57]} 31. Bc6 {[%clk 0:00:43]}  Nc4 {[%clk 0:01:53]} 32. Bxa4 {[%clk 0:00:42]}  Nxa3 {[%clk 0:01:51]} 33. Be8 {[%clk 0:00:42]}  f6 {[%clk 0:01:51]} 34. exf6 {[%clk 0:00:33]}  gxf6 {[%clk 0:01:52]} 35. h4 {[%clk 0:00:33]}  Kd8 {[%clk 0:01:52]} 36. Bg6 {[%clk 0:00:32]}  Nb5 {[%clk 0:01:50]} 37. g5 {[%clk 0:00:31]}  fxg5 {[%clk 0:01:49]} 38. fxg5 {[%clk 0:00:32]}  hxg5 {[%clk 0:01:49]} 39. hxg5 {[%clk 0:00:31]}  Ke7 {[%clk 0:01:49]} 40. Bd3 {[%clk 0:00:30]}  Nd6 {[%clk 0:01:46]} 41. Kf4 {[%clk 0:00:30]}  Nf7 {[%clk 0:01:45]} 42. g6 {[%clk 0:00:30]}  Kf6 {[%clk 0:01:45]} 43. gxf7 {[%clk 0:00:29]}  Kxf7 {[%clk 0:01:45]} 44. Ke5 {[%clk 0:00:30]}  Ke7 {[%clk 0:01:45]} 45. Bc4 {[%clk 0:00:31]}  Kd7 {[%clk 0:01:46]} 46. Bxe6+ {[%clk 0:00:31]} 1/2-1/2


[Site "https://www.chess.com"]